bitfinex-derivatives/quotes_BTCF0:USTF0_20250629
["timestamp","ask_amount","ask_price","bid_price","bid_amount"]
[1751191511574,0.00257416,108080.0,108070.0,0.75334318]
[1751191511779,0.18755876,108080.0,108070.0,0.75334318]
[1751191511978,0.00257416,108080.0,108070.0,0.75334318]
[1751191512182,0.00257416,108080.0,108070.0,0.73888036]
[1751191512681,0.00257416,108080.0,108070.0,0.68356055]
[1751191513175,0.00257416,108080.0,108070.0,0.73888036]
[1751191513376,0.00257416,108080.0,108070.0,0.69802306]
[1751191513572,0.00257416,108080.0,108070.0,0.68356055]
[1751191513973,0.00257416,108080.0,108070.0,0.73888036]
[1751191514978,0.00257416,108080.0,108070.0,0.70858036]
[1751191515183,0.00257416,108080.0,108070.0,0.66772306]
[1751191515383,0.00257416,108080.0,108070.0,0.69982306]
[1751191515682,0.00257416,108080.0,108070.0,0.74068036]
[1751191516383,0.00257416,108080.0,108070.0,0.7222297]
[1751191516584,0.00257416,108080.0,108070.0,0.69982264]
[1751191516879,0.00257416,108080.0,108070.0,0.7222297]
[1751191517084,0.184982,108090.0,108080.0,0.1849846]
[1751191517284,0.184982,108090.0,108080.0,0.73197611]
[1751191518185,0.184982,108090.0,108080.0,0.69509951]
[1751191518879,0.283482,108090.0,108080.0,0.69509951]
[1751191519074,0.00657416,108100.0,108090.0,0.1849674]
[1751191519278,0.00657416,108100.0,108090.0,0.6379457]
[1751191519479,0.00657416,108100.0,108090.0,0.67663079]
[1751191519883,0.00657416,108100.0,108090.0,0.7319457]
[1751191520284,0.00657416,108100.0,108090.0,0.73030429]
[1751191520473,0.00657416,108100.0,108090.0,0.71177056]
[1751191521172,0.00657416,108100.0,108090.0,0.78730684]
[1751191521574,0.00657416,108100.0,108090.0,0.8241021]
[1751191521780,0.00657416,108100.0,108090.0,0.78730684]
[1751191522287,0.00657416,108100.0,108090.0,0.82410005]
[1751191522780,0.00657416,108100.0,108090.0,0.78730684]
[1751191523082,0.00657416,108100.0,108090.0,0.80176574]
[1751191523784,0.00657416,108100.0,108090.0,0.78331426]
[1751191524182,0.00657416,108100.0,108090.0,0.68931426]
[1751191524385,0.10533553,108110.0,108100.0,0.1849505]
[1751191524386,0.00583559,108110.0,108100.0,0.1849505]
[1751191524685,0.00583559,108110.0,108100.0,0.6076505]
[1751191524880,0.00583559,108110.0,108100.0,1.11222314]
[1751191525080,0.00583559,108110.0,108100.0,1.05711641]
[1751191525788,0.00583559,108110.0,108100.0,1.0426585]
[1751191525986,0.00110273,108120.0,108110.0,0.1849334]
[1751191526183,0.00110273,108120.0,108110.0,1.41504496]
[1751191526875,0.0973,108140.0,108130.0,0.1848992]
[1751191527081,0.2821819,108140.0,108130.0,0.79876066]
[1751191527283,0.2821819,108140.0,108130.0,0.86046066]
[1751191527483,0.2821819,108140.0,108130.0,0.29054066]
[1751191528190,0.2821819,108140.0,108130.0,0.29254066]
[1751191528391,0.2821819,108140.0,108130.0,0.26504527]
[1751191528590,0.2821819,108140.0,108130.0,0.77318527]
[1751191528791,0.2821819,108140.0,108130.0,0.20334527]
[1751191529595,0.2821819,108140.0,108130.0,0.77314527]
[1751191530398,0.2821819,108140.0,108130.0,0.20234527]
[1751191530598,0.2821819,108140.0,108130.0,0.77214527]
[1751191531192,0.2821819,108140.0,108130.0,0.77714527]
[1751191531895,0.001,108140.0,108130.0,1.13794527]
[1751191532095,0.0962,108170.0,108160.0,0.1848477]
[1751191532291,0.2810306,108170.0,108160.0,0.37744643]
[1751191532593,0.8918306,108170.0,108160.0,0.00149199]
[1751191532793,1.0767346,108170.0,108160.0,0.00149199]
[1751191532996,0.1848648,108150.0,108140.0,0.02749539]
[1751191533196,0.437213,108160.0,108130.0,0.72473738]
[1751191533398,0.2150819,108140.0,108130.0,0.4221636]
[1751191533703,0.2150819,108140.0,108130.0,0.03386821]
[1751191534003,0.2452819,108140.0,108130.0,0.235827]
[1751191534199,0.2452819,108140.0,108130.0,0.229827]
[1751191534501,0.2452819,108140.0,108130.0,0.20195879]
[1751191534801,0.184899,108130.0,108120.0,0.5919325]
[1751191534992,0.215099,108130.0,108120.0,0.61980144]
[1751191536201,0.245899,108130.0,108120.0,0.61980144]
[1751191537110,0.379739,108130.0,108120.0,0.61980144]
[1751191537709,0.379739,108130.0,108120.0,0.62280144]
[1751191540412,0.740539,108130.0,108120.0,0.03086894]
[1751191540908,0.740539,108130.0,108120.0,0.003]
[1751191541407,0.740539,108130.0,108120.0,0.03075636]
[1751191541606,0.1849334,108110.0,108100.0,0.61083084]
[1751191541802,0.3187734,108110.0,108100.0,0.27784211]
[1751191542002,0.3823734,108110.0,108100.0,0.24118159]
[1751191542203,0.39163716,108110.0,108100.0,0.0287357]
[1751191542409,0.39163716,108110.0,108100.0,0.2136862]
[1751191542709,1.3126534,108110.0,108100.0,0.0287357]
[1751191543704,1.3126534,108110.0,108100.0,0.0327357]
[1751191543905,1.7476614,108110.0,108100.0,0.0327357]
[1751191544203,1.4976614,108110.0,108100.0,0.00492503]
[1751191544402,1.4976614,108110.0,108100.0,0.0327721]
[1751191544805,1.4976614,108110.0,108100.0,0.00092503]
[1751191545411,0.2485334,108110.0,108100.0,0.18587543]
[1751191545600,0.9518534,108110.0,108100.0,0.21372781]
[1751191545804,0.2485334,108110.0,108100.0,0.21372781]
[1751191546005,0.9519334,108110.0,108100.0,0.21372781]
[1751191546201,0.2485334,108110.0,108100.0,0.21372781]
[1751191546508,0.3824134,108110.0,108100.0,0.18587543]
[1751191547115,0.2485334,108110.0,108100.0,0.18687543]
[1751191547411,0.9518934,108110.0,108100.0,0.21479588]
[1751191548106,0.2485334,108110.0,108100.0,0.21479588]
[1751191548505,0.3824134,108110.0,108100.0,0.21479588]
[1751191549008,0.3824134,108110.0,108100.0,0.57559588]
[1751191549009,0.2485334,108110.0,108100.0,0.57559588]
[1751191549216,0.3824134,108110.0,108100.0,0.60659588]
[1751191549413,0.2485334,108110.0,108100.0,0.63749588]
[1751191549611,0.3824134,108110.0,108100.0,0.63749588]
[1751191550014,0.2485334,108110.0,108100.0,0.63749588]
[1751191550212,0.3824135,108110.0,108100.0,0.63749588]
[1751191550406,0.3824135,108110.0,108100.0,0.67019588]
[1751191550611,0.2485335,108110.0,108100.0,0.67019588]
[1751191550816,0.2171335,108110.0,108100.0,0.67019588]
[1751191551614,0.4725697,108120.0,108110.0,0.1849335]
[1751191551820,0.4725697,108120.0,108110.0,0.5763335]
[1751191552022,0.4263379,108120.0,108110.0,0.6078335]
[1751191552722,0.3650379,108120.0,108110.0,0.6078335]
[1751191552908,0.3650379,108120.0,108110.0,0.63576854]
[1751191553518,0.3714645,108130.0,108120.0,0.1849164]
[1751191553717,0.5515725,108130.0,108120.0,0.1849164]
[1751191554819,0.4176925,108130.0,108120.0,0.1849164]
[1751191555018,0.5515725,108130.0,108120.0,0.1849164]
[1751191555822,0.1848911,108140.0,108130.0,0.1848993]
[1751191556020,0.4112159,108140.0,108130.0,0.27700561]
[1751191556212,0.5084159,108140.0,108130.0,0.27700561]
[1751191556414,0.5084159,108140.0,108130.0,0.24500561]
[1751191557014,0.5104159,108140.0,108130.0,0.21280561]
[1751191558012,0.4462159,108140.0,108130.0,0.21280561]
[1751191558222,0.4462159,108140.0,108130.0,0.27470561]
[1751191560222,0.4132159,108140.0,108130.0,0.27470561]
[1751191560424,0.4132159,108140.0,108130.0,0.302201]
[1751191562024,0.002,108140.0,108130.0,0.663001]
[1751191562323,0.1868823,108140.0,108130.0,0.663001]
[1751191562726,0.002,108140.0,108130.0,0.663001]
[1751191562926,0.1868823,108140.0,108130.0,0.663001]
[1751191564924,0.1868823,108140.0,108130.0,0.69966152]
[1751191566225,0.1868823,108140.0,108130.0,0.63776162]
[1751191566422,0.2808823,108140.0,108130.0,0.63776162]
[1751191568320,0.2808823,108140.0,108130.0,0.6011011]
[1751191568520,0.2808823,108140.0,108130.0,0.63776162]
[1751191569328,0.2808823,108140.0,108130.0,0.6011011]
[1751191572933,0.2808823,108140.0,108130.0,0.6663011]
[1751191574029,0.1868823,108140.0,108130.0,0.6663011]
[1751191576232,0.1868823,108140.0,108130.0,0.70296162]
[1751191576924,0.1868823,108140.0,108130.0,0.6663011]
[1751191577330,0.1868823,108140.0,108130.0,0.70296162]
[1751191580338,0.1868823,108140.0,108130.0,0.67546623]
[1751191580541,0.1868823,108140.0,108130.0,0.73050836]
[1751191581342,0.1868823,108140.0,108130.0,0.67546623]
[1751191582243,0.1868823,108140.0,108130.0,1.24434623]
[1751191583344,0.002,108140.0,108130.0,1.24434623]
[1751191583938,0.002,108140.0,108130.0,1.26272784]
[1751191585245,0.002,108140.0,108130.0,1.20768571]
[1751191587242,0.002,108140.0,108130.0,1.26286713]
[1751191590454,0.002,108140.0,108130.0,1.27732062]
[1751191591564,0.002,108140.0,108130.0,1.28143473]
[1751191592463,0.002,108140.0,108130.0,1.29588811]
[1751191594363,0.002,108140.0,108130.0,1.28143473]
[1751191594769,0.002,108140.0,108130.0,1.29588811]
[1751191595161,0.002,108140.0,108130.0,1.28143473]
[1751191595865,0.002,108140.0,108130.0,1.22213909]
[1751191596163,0.002,108140.0,108130.0,1.28143473]
[1751191596361,0.002,108140.0,108130.0,1.2628467]
[1751191598066,0.002,108140.0,108130.0,1.25891158]
[1751191603071,0.002,108140.0,108130.0,1.2628467]
[1751191606261,0.002,108140.0,108130.0,1.28143473]
[1751191609468,0.002,108140.0,108130.0,1.29588766]
[1751191611479,0.002,108140.0,108130.0,1.22213864]
[1751191612682,0.002,108140.0,108130.0,1.35497864]
[1751191614380,0.002,108140.0,108130.0,1.44716491]
[1751191618480,0.002,108140.0,108130.0,0.74544491]
[1751191618680,0.002,108140.0,108130.0,1.44704491]
[1751191621081,0.002,108140.0,108130.0,1.4191386]
[1751191623291,0.002,108140.0,108130.0,1.44684684]
[1751191623495,0.002,108140.0,108130.0,1.43239391]
[1751191629993,0.002,108140.0,108130.0,1.44684669]
[1751191637491,0.002,108140.0,108130.0,1.43239391]
[1751191637696,0.002,108140.0,108130.0,1.44684657]
[1751191639696,0.002,108140.0,108130.0,1.3546603]
[1751191640304,0.002,108140.0,108130.0,1.44684657]
[1751191642301,0.002,108140.0,108130.0,0.74524657]
[1751191642497,0.002,108140.0,108130.0,1.44632657]
[1751191642799,0.002,108140.0,108130.0,1.42770947]
[1751191644408,0.002,108140.0,108130.0,1.3541403]
[1751191645302,0.0612,108150.0,108140.0,0.1848825]
[1751191645599,0.0612,108150.0,108140.0,0.60461728]
[1751191646005,0.0324,108160.0,108150.0,0.1848654]
[1751191646200,0.0324,108160.0,108150.0,1.22925049]
[1751191646201,0.094,108160.0,108150.0,1.22925049]
[1751191646406,0.094,108160.0,108150.0,1.1963981]
[1751191646596,0.094,108160.0,108150.0,1.2286981]
[1751191646796,0.094,108160.0,108150.0,1.21084859]
[1751191647203,0.094,108160.0,108150.0,1.18314035]
[1751191647403,0.097,108160.0,108150.0,1.18314035]
[1751191647904,0.094,108160.0,108150.0,1.18314035]
[1751191648102,0.094,108160.0,108150.0,1.18414035]
[1751191649708,0.094,108160.0,108150.0,1.25964539]
[1751191651511,0.0313,108160.0,108150.0,1.25964539]
[1751191651806,0.0313,108160.0,108150.0,1.26870093]
[1751191652205,0.0313,108160.0,108150.0,1.34224512]
[1751191652406,0.0313,108160.0,108150.0,1.32779463]
[1751191654514,0.0313,108160.0,108150.0,1.25425044]
[1751191655110,0.0313,108160.0,108150.0,1.32377056]
[1751191655322,0.0313,108160.0,108150.0,1.30932032]
[1751191655812,0.0642,108160.0,108150.0,1.3237705]
[1751191656318,0.0642,108160.0,108150.0,1.34224481]
[1751191657310,0.0642,108160.0,108150.0,1.32779463]
[1751191661817,0.0642,108160.0,108150.0,1.26870067]
[1751191666717,0.0642,108160.0,108150.0,1.2687005]
[1751191667115,0.0642,108160.0,108150.0,1.34224469]
[1751191667317,0.0642,108160.0,108150.0,1.37524469]
[1751191667718,0.0642,108160.0,108150.0,1.73604469]
[1751191671218,0.0971,108170.0,108160.0,0.1848483]
[1751191671519,0.0971,108170.0,108160.0,0.63601881]
[1751191673219,0.001,108170.0,108160.0,0.63601881]
[1751191673423,0.001,108170.0,108160.0,0.73321881]
[1751191673723,0.001,108170.0,108160.0,0.73421881]
[1751191673923,0.001,108170.0,108160.0,0.65100412]
[1751191674320,0.001,108170.0,108160.0,0.70611072]
[1751191674827,0.001,108170.0,108160.0,0.74331072]
[1751191675725,0.001,108170.0,108160.0,0.76174831]
[1751191675923,0.001,108170.0,108160.0,0.68820412]
[1751191677119,0.001,108170.0,108160.0,0.76167964]
[1751191679028,0.001,108170.0,108160.0,0.89459964]
[1751191680128,0.001,108170.0,108160.0,1.25539964]
[1751191687032,0.001,108170.0,108160.0,1.2370215]
[1751191687638,0.0951,108170.0,108160.0,1.2038215]
[1751191688135,0.0951,108170.0,108160.0,1.14872412]
[1751191688435,0.0951,108170.0,108160.0,1.22219964]
[1751191690039,0.0951,108170.0,108160.0,1.08927964]
[1751191690237,0.0951,108170.0,108160.0,1.57405858]
[1751191691939,0.0951,108170.0,108160.0,1.00689858]
[1751191692140,0.0951,108170.0,108160.0,1.57405858]
[1751191692331,0.0951,108170.0,108160.0,1.62230867]
[1751191692531,0.4561003,108190.0,108180.0,0.1848141]
[1751191692733,0.4883003,108190.0,108180.0,0.21236387]
[1751191693931,0.5514003,108190.0,108180.0,0.21236387]
[1751191694338,0.3263133,108190.0,108180.0,0.21236387]
[1751191694839,0.3263133,108190.0,108180.0,0.21336387]
[1751191695830,0.3263133,108190.0,108180.0,0.21436387]
[1751191697132,0.3263133,108190.0,108180.0,0.22354713]
[1751191699138,0.0953,108190.0,108180.0,0.58434713]
[1751191699639,0.0631,108190.0,108180.0,0.70284159]
[1751191699936,0.0631,108190.0,108180.0,0.73474159]
[1751191700350,0.36129553,108200.0,108190.0,0.1847971]
[1751191700635,0.10563553,108200.0,108190.0,1.14018706]
[1751191700836,0.10563553,108200.0,108190.0,1.17692009]
[1751191701442,0.10563553,108200.0,108190.0,1.27032009]
[1751191701633,0.10563553,108200.0,108190.0,1.27132009]
[1751191702246,0.10563553,108200.0,108190.0,1.24377013]
[1751191702436,0.10563553,108200.0,108190.0,1.29886459]
[1751191702645,0.10563553,108200.0,108190.0,1.26313156]
[1751191702843,0.10563553,108200.0,108190.0,1.27216418]
[1751191703142,0.29041553,108200.0,108190.0,1.27216418]
[1751191703846,0.10563553,108200.0,108190.0,1.27216418]
[1751191704642,0.10563553,108200.0,108190.0,1.27416418]
[1751191705043,0.10563553,108200.0,108190.0,1.27516418]
[1751191705243,0.07363553,108200.0,108190.0,1.27108325]
[1751191705442,0.04243553,108200.0,108190.0,1.27708325]
[1751191705644,0.01183553,108200.0,108190.0,1.27708325]
[1751191705843,0.19661573,108200.0,108190.0,1.22306972]
[1751191706045,0.01183553,108200.0,108190.0,1.22306972]
[1751191706244,0.01183553,108200.0,108190.0,1.27806701]
[1751191706446,0.01183553,108200.0,108190.0,1.22306972]
[1751191707148,0.01183553,108200.0,108190.0,1.27806451]
[1751191708150,0.01183553,108200.0,108190.0,1.27794451]
[1751191711349,0.5927171,108230.0,108220.0,0.1847461]
[1751191711645,0.6868171,108230.0,108220.0,0.7516261]
[1751191711852,0.3260171,108230.0,108220.0,0.7516261]
[1751191712245,0.2798348,108230.0,108220.0,0.7516261]
[1751191712644,0.0951,108230.0,108220.0,0.7832261]
[1751191712844,0.001,108230.0,108220.0,1.1440261]
[1751191713047,0.001,108230.0,108220.0,1.2094261]
[1751191713251,0.185729,108230.0,108220.0,1.2094261]
[1751191713450,0.185729,108230.0,108220.0,1.2839215]
[1751191714156,0.185729,108230.0,108220.0,0.4352954]
[1751191714348,0.250129,108230.0,108220.0,1.1958814]
[1751191714548,0.280329,108230.0,108220.0,0.6200414]
[1751191714749,0.280329,108230.0,108220.0,1.1964014]
[1751191715056,0.280329,108230.0,108220.0,0.6200414]
[1751191715254,0.280329,108230.0,108220.0,1.1967214]
[1751191715753,0.280329,108230.0,108220.0,1.1966014]
[1751191717854,0.1847461,108220.0,108210.0,0.21222525]
[1751191718156,0.2800461,108220.0,108210.0,0.21223225]
[1751191718753,0.2800461,108220.0,108210.0,0.1847631]
[1751191718954,0.2800461,108220.0,108210.0,0.21223225]
[1751191719257,0.2800461,108220.0,108210.0,0.1847631]
[1751191719455,0.2800461,108220.0,108210.0,0.57503225]
[1751191720456,0.2800461,108220.0,108210.0,0.58944608]
[1751191721354,0.35517561,108220.0,108210.0,0.58944608]
[1751191722359,0.35517561,108220.0,108210.0,0.57503225]
[1751191723160,0.49273561,108220.0,108210.0,0.57503225]
[1751191725661,0.49273561,108220.0,108210.0,0.5475631]
[1751191726359,0.49273561,108220.0,108210.0,0.57503225]
[1751191728468,0.5019387,108220.0,108210.0,0.57503225]
[1751191730169,0.5019387,108220.0,108210.0,0.61165779]
[1751191731372,0.49273561,108220.0,108210.0,0.61165779]
[1751191732257,0.49273561,108220.0,108210.0,0.58418864]
[1751191732869,0.50204665,108220.0,108210.0,0.58418864]
[1751191734769,0.50204665,108220.0,108210.0,0.06613017]
[1751191734966,0.1847631,108210.0,108200.0,0.05499479]
[1751191735172,0.2485631,108210.0,108200.0,0.05499479]
[1751191735466,0.2485631,108210.0,108190.0,0.69298759]
[1751191735467,0.1847802,108200.0,108190.0,0.69298759]
[1751191735674,0.4164402,108200.0,108190.0,0.69298759]
[1751191736968,0.4164402,108200.0,108190.0,0.6379928]
[1751191737268,0.48211851,108220.0,108200.0,0.0923859]
[1751191737473,0.58403151,108220.0,108210.0,0.1847631]
[1751191738172,0.44647151,108220.0,108210.0,0.1847631]
[1751191738374,0.58503151,108220.0,108210.0,0.1847631]
[1751191738969,0.44847151,108220.0,108210.0,0.1847631]
[1751191739169,0.58603151,108220.0,108210.0,0.1847631]
[1751191739570,0.58603151,108220.0,108210.0,0.21227385]
[1751191740072,0.58603151,108220.0,108210.0,0.1847631]
[1751191740274,0.58603151,108220.0,108210.0,0.20126298]
[1751191740677,0.58603151,108220.0,108210.0,0.22877373]
[1751191740976,0.58403151,108220.0,108210.0,0.20126298]
[1751191741176,0.58403151,108220.0,108210.0,0.20226298]
[1751191741579,0.58403151,108220.0,108210.0,0.21327385]
[1751191745881,0.58403151,108220.0,108210.0,0.23004926]
[1751191754288,0.58403151,108220.0,108210.0,0.20253851]
[1751191754488,0.58403151,108220.0,108210.0,0.56333851]
[1751191758993,0.58295151,108220.0,108210.0,0.56333851]
[1751191759386,0.44647151,108220.0,108210.0,0.56333851]
[1751191759584,0.58295151,108220.0,108210.0,0.56333851]
[1751191760285,0.58295151,108220.0,108210.0,0.57778308]
[1751191760494,0.58295151,108220.0,108210.0,0.56333851]
[1751191760688,0.52035151,108220.0,108210.0,0.56333851]
[1751191760993,0.52035151,108220.0,108210.0,0.62403851]
[1751191761494,0.58255151,108220.0,108210.0,0.62403851]
[1751191761891,0.58255151,108220.0,108210.0,0.6790333]
[1751191764099,0.58255151,108220.0,108210.0,0.60155789]
[1751191764893,0.58255151,108220.0,108210.0,0.63824425]
[1751191767992,0.58255151,108220.0,108210.0,0.06522517]
[1751191768394,0.58255151,108220.0,108210.0,0.24998827]
[1751191769596,0.58255151,108220.0,108210.0,0.06522517]
[1751191769798,0.58255151,108220.0,108210.0,0.24998827]
[1751191769998,0.58255151,108220.0,108210.0,0.21330191]
[1751191771294,0.58255151,108220.0,108210.0,0.24998827]
[1751191771491,0.58255151,108220.0,108210.0,0.22244946]
[1751191772298,0.44607151,108220.0,108210.0,0.22244946]
[1751191772489,1.15603151,108220.0,108210.0,0.04299062]
[1751191773696,1.51683151,108220.0,108210.0,0.04299062]
[1751191773999,0.80687151,108220.0,108210.0,0.04299062]
[1751191774200,1.51655151,108220.0,108210.0,0.04299062]
[1751191774499,0.80687151,108220.0,108210.0,0.04299062]
[1751191774694,1.51655151,108220.0,108210.0,0.04299062]
[1751191776004,1.51651151,108220.0,108210.0,0.02854546]
[1751191776195,1.51635151,108220.0,108210.0,0.02854546]
[1751191777002,1.51635151,108220.0,108210.0,0.001]
[1751191779304,1.51603151,108220.0,108210.0,0.001]
[1751191779506,0.80687151,108220.0,108210.0,0.001]
[1751191779705,1.51623151,108220.0,108210.0,0.001]
[1751191782402,1.51591151,108220.0,108210.0,0.1857631]
[1751191785111,0.80687151,108220.0,108210.0,0.1857631]
[1751191785312,1.51479151,108220.0,108210.0,0.1857631]
[1751191787014,1.51479151,108220.0,108210.0,0.21330856]
[1751191789005,1.51479151,108220.0,108210.0,0.02854546]
[1751191791913,0.80687151,108220.0,108210.0,0.02854546]
[1751191792115,1.51423151,108220.0,108210.0,0.02854546]
[1751191792915,0.44607151,108220.0,108210.0,0.02854546]
[1751191793114,1.51415151,108220.0,108210.0,0.02854546]
[1751191796019,1.15335151,108220.0,108210.0,0.02854546]
[1751191796220,1.51415151,108220.0,108210.0,0.02854546]
[1751191797218,1.15335151,108220.0,108210.0,0.06523182]
[1751191797417,1.51415151,108220.0,108210.0,0.06523182]
[1751191798208,0.48779151,108220.0,108210.0,0.24999492]
[1751191798415,0.35227151,108220.0,108210.0,0.73014425]
[1751191798720,1.05887151,108220.0,108210.0,0.73014425]
[1751191800019,0.001,108230.0,108220.0,0.184746]
[1751191800210,0.001,108230.0,108220.0,0.7291556]
[1751191800211,0.185729,108230.0,108220.0,0.7291556]
[1751191800522,0.185729,108230.0,108220.0,0.69244079]
[1751191801218,0.186729,108230.0,108220.0,0.69244079]
[1751191801419,0.186729,108230.0,108220.0,0.72913565]
[1751191802520,0.186729,108230.0,108220.0,0.67414086]
[1751191802723,0.186729,108230.0,108220.0,0.69244079]
[1751191806919,0.186729,108230.0,108220.0,0.76605623]
[1751191807122,0.186729,108230.0,108220.0,0.80267438]
[1751191807319,0.002,108230.0,108220.0,0.67406415]
[1751191808120,0.002,108230.0,108220.0,0.72905894]
[1751191808416,0.002,108230.0,108220.0,0.67406415]
[1751191810523,0.002,108230.0,108220.0,0.72905894]
[1751191811926,0.002,108230.0,108220.0,0.67406415]
[1751191812122,0.002,108230.0,108220.0,0.74897169]
[1751191813334,0.002,108230.0,108220.0,0.80396648]
[1751191813829,0.186729,108230.0,108220.0,1.37432648]
[1751191816232,0.186729,108230.0,108220.0,1.37384648]
[1751191817033,0.186729,108230.0,108220.0,1.33722833]
[1751191819234,0.186729,108230.0,108220.0,1.3188102]
[1751191819832,0.186729,108230.0,108220.0,1.33321581]
[1751191820743,0.186729,108230.0,108220.0,0.76333581]
[1751191821046,0.186729,108230.0,108220.0,1.33281581]
[1751191821641,0.186729,108230.0,108220.0,1.33682833]
[1751191822239,0.002,108230.0,108220.0,1.33682833]
[1751191825250,0.002,108230.0,108220.0,1.28183354]
[1751191826351,0.002,108230.0,108220.0,1.35530906]
[1751191827143,0.002,108230.0,108220.0,1.37338649]
[1751191827340,0.002,108230.0,108220.0,1.33676531]
[1751191827543,0.002,108230.0,108220.0,1.3734016]
[1751191827748,0.002,108230.0,108220.0,1.38779081]
[1751191828258,0.002,108230.0,108220.0,1.35115452]
[1751191828548,0.186729,108230.0,108220.0,1.35115452]
[1751191828750,0.0982,108230.0,108220.0,1.35115452]
[1751191829551,0.0335,108230.0,108220.0,1.35115452]
[1751191829952,0.0335,108230.0,108220.0,1.33676531]
[1751191830946,0.0335,108230.0,108220.0,1.35120661]
[1751191831554,0.0335,108230.0,108220.0,1.33676531]
[1751191831748,0.0335,108230.0,108220.0,1.35120661]
[1751191832348,0.0335,108230.0,108220.0,1.33676531]
[1751191834254,0.0335,108230.0,108220.0,1.28183354]
[1751191834454,0.0335,108230.0,108220.0,1.33686435]
[1751191835352,0.002,108230.0,108220.0,1.28183354]
[1751191835952,0.002,108230.0,108220.0,1.35530906]
[1751191838454,0.002,108230.0,108220.0,0.78582906]
[1751191838753,0.002,108230.0,108220.0,1.35442906]
[1751191840351,0.002,108230.0,108220.0,1.28095354]
[1751191841153,0.002,108230.0,108220.0,1.35434241]
[1751191841562,0.002,108230.0,108220.0,0.78574241]
[1751191841754,0.002,108230.0,108220.0,1.35434241]
[1751191842061,0.002,108230.0,108220.0,0.78574241]
[1751191842263,0.002,108230.0,108220.0,1.35434241]
[1751191842463,0.002,108230.0,108220.0,1.36872874]
[1751191846960,0.002,108230.0,108220.0,1.29533987]
[1751191851576,0.002,108230.0,108220.0,1.65613987]
[1751191851876,0.002,108230.0,108220.0,1.74633982]
[1751191853477,0.002,108230.0,108220.0,1.72801576]
[1751191853973,0.002,108230.0,108220.0,1.67295095]
[1751191855882,0.002,108230.0,108220.0,1.10435095]
[1751191856374,0.002,108230.0,108220.0,1.67283095]
[1751191859176,0.032,108230.0,108220.0,1.67283095]
[1751191860079,0.002,108230.0,108220.0,1.67283095]
[1751191863481,0.002,108230.0,108220.0,1.76501722]
[1751191868587,0.002,108230.0,108220.0,1.04341722]
[1751191868787,0.002,108230.0,108220.0,1.76501722]
[1751191868984,0.0347,108230.0,108220.0,1.76501722]
[1751191869781,0.0347,108230.0,108220.0,1.67283095]
[1751191869982,0.0347,108230.0,108220.0,1.74624222]
[1751191871587,0.219429,108230.0,108220.0,1.67303722]
[1751191871781,0.280829,108230.0,108220.0,1.67303722]
[1751191871981,0.280829,108230.0,108220.0,0.80940562]
[1751191872181,0.414349,108230.0,108220.0,0.06946193]
[1751191872489,0.1847461,108220.0,108210.0,0.43421929]
[1751191872681,0.2478461,108220.0,108210.0,0.39751233]
[1751191873287,0.2569386,108220.0,108210.0,0.60978479]
[1751191874088,0.2569386,108220.0,108210.0,0.24998479]
[1751191874289,0.2569386,108220.0,108210.0,0.21327246]
[1751191875290,0.2478461,108220.0,108210.0,0.21327246]
[1751191875488,0.21713,108230.0,108220.0,0.1847461]
[1751191875784,0.0324,108230.0,108220.0,0.57305546]
[1751191875994,0.0324,108230.0,108220.0,0.6075461]
[1751191876492,0.0334,108230.0,108220.0,0.6075461]
[1751191877182,0.0324,108230.0,108220.0,0.64516132]
[1751191879190,0.217129,108230.0,108220.0,1.15156132]
[1751191879390,0.096,108230.0,108220.0,1.15156132]
[1751191879990,0.096,108230.0,108220.0,1.18196132]
[1751191880291,0.096,108230.0,108220.0,1.28514301]
[1751191881194,0.280729,108230.0,108220.0,1.28514301]
[1751191882981,0.280729,108230.0,108220.0,1.31260544]
[1751191883981,0.280729,108230.0,108220.0,1.28514301]
[1751191885095,0.280729,108230.0,108220.0,1.28614301]
[1751191885295,0.280729,108230.0,108220.0,1.28714301]
[1751191886290,0.280729,108230.0,108220.0,1.30158479]
[1751191886590,0.280729,108230.0,108220.0,1.18102675]
[1751191887188,0.280729,108230.0,108220.0,1.1169461]
[1751191887796,0.280729,108230.0,108220.0,1.15348783]
[1751191888199,0.280729,108230.0,108220.0,0.58516783]
[1751191888394,0.280729,108230.0,108220.0,1.15348783]
[1751191889201,0.280729,108230.0,108220.0,1.1168661]
[1751191891897,0.280729,108230.0,108220.0,1.15349101]
[1751191892298,0.280729,108230.0,108220.0,1.171805]
[1751191893295,0.280729,108230.0,108220.0,0.64011277]
[1751191893494,0.280729,108230.0,108220.0,0.64011267]
[1751191893694,0.280729,108230.0,108220.0,0.58517377]
[1751191893898,0.280729,108230.0,108220.0,0.61264918]
[1751191894092,0.280729,108230.0,108220.0,0.42790318]
[1751191894293,0.280729,108230.0,108220.0,0.61264918]
[1751191895394,0.280729,108230.0,108220.0,0.57602141]
[1751191899401,0.280729,108230.0,108220.0,0.61264918]
[1751191901304,0.280729,108230.0,108220.0,0.57602141]
[1751191903208,0.280729,108230.0,108220.0,0.61264918]
[1751191903610,0.280729,108230.0,108220.0,0.68836052]
[1751191906012,0.185729,108230.0,108220.0,0.68836052]
[1751191906213,0.319169,108230.0,108220.0,0.71886052]
[1751191906511,0.319169,108230.0,108220.0,0.75176052]
[1751191906719,0.417169,108230.0,108220.0,0.75176052]
[1751191908025,0.417169,108230.0,108220.0,0.68836052]
[1751191910128,0.417169,108230.0,108220.0,0.66088511]
[1751191910421,0.417169,108230.0,108220.0,0.71582401]
[1751191911727,0.417169,108230.0,108220.0,0.66088511]
[1751191912225,0.417169,108230.0,108220.0,0.71582401]
[1751191913025,0.417169,108230.0,108220.0,0.66088511]
[1751191916727,0.417169,108230.0,108220.0,0.71582401]
[1751191916926,0.417169,108230.0,108220.0,0.30008511]
[1751191917119,0.985249,108230.0,108220.0,0.29096487]
[1751191922130,0.283729,108230.0,108220.0,0.29096487]
[1751191922331,0.985209,108230.0,108220.0,0.29096487]
[1751191923326,0.985209,108230.0,108220.0,0.32759264]
[1751191925335,0.985209,108230.0,108220.0,0.14284664]
[1751191925626,0.985209,108230.0,108220.0,0.10621887]
[1751191926027,0.283729,108230.0,108220.0,0.10621887]
[1751191926228,0.985209,108230.0,108220.0,0.10621887]
[1751191926729,0.985209,108230.0,108220.0,0.29096477]
[1751191927127,0.985209,108230.0,108220.0,0.17027801]
[1751191927528,0.985169,108230.0,108220.0,0.11533911]
[1751191927726,0.985169,108230.0,108220.0,0.17027801]
[1751191927921,0.985169,108230.0,108220.0,0.11533911]
[1751191928628,1.345969,108230.0,108220.0,0.11533911]